bitfinex/quotes_ETHUSD_20250518
["timestamp","ask_amount","ask_price","bid_price","bid_amount"]
[1747608992040,4.09266549,2443.4,2443.3,24.113]
[1747608992535,4.09265777,2443.4,2443.3,24.113]
[1747608993153,17.39,2443.4,2442.3,0.56564768]
[1747608993354,0.05117394,2443.3,2442.4,9.395]
[1747608993526,0.796,2443.5,2442.5,0.82993865]
[1747608993720,0.796,2443.5,2442.6,1.02249386]
[1747608993959,4.093663,2442.8,2442.7,9.396]
[1747608994450,4.09265777,2443.4,2442.3,15.28364768]
[1747608994652,4.093663,2442.8,2442.7,9.396]
[1747608995673,4.09326777,2443.1,2442.8,0.55]
[1747608995873,4.09304283,2443.2,2442.8,0.55]
[1747608996034,4.09318258,2443.1,2442.8,0.55]
[1747608996444,4.09336689,2443.0,2442.8,0.55]
[1747608996734,4.09349543,2442.9,2442.8,0.55]
[1747608996940,4.0934003,2443.0,2442.8,0.55]
[1747608997466,4.09301884,2443.2,2442.8,0.55]
[1747608997677,4.09331497,2443.1,2442.7,0.55]
[1747608997966,4.09336843,2443.0,2442.8,9.398]
[1747608998170,0.7895,2443.8,2442.9,0.55]
[1747608998476,0.7895,2444.4,2443.3,4.64281539]
[1747608998771,4.09002731,2445.0,2444.4,0.55]
[1747608998948,4.08991426,2445.1,2444.5,28.21275359]
[1747608999144,4.09000356,2445.0,2444.5,27.06090895]
[1747608999350,4.0903576,2444.8,2444.5,27.06090895]
[1747608999551,4.09019912,2444.9,2444.5,27.06090895]
[1747608999773,0.34293849,2444.9,2444.6,0.55]
[1747609000236,4.09041976,2444.8,2444.7,9.392]
[1747609000566,0.34293849,2444.8,2444.7,9.392]
[1747609000770,4.43325262,2444.8,2444.7,9.392]
[1747609000969,0.34293849,2444.8,2444.7,9.392]
[1747609001149,4.43325262,2444.8,2444.7,9.392]
[1747609001336,0.34293849,2444.8,2444.7,12.7024909]
[1747609001540,0.34293849,2444.8,2444.7,17.60147234]
[1747609002143,0.34293849,2444.8,2444.7,4.1189909]
[1747609002350,0.34293849,2444.8,2444.7,24.23198144]
[1747609002565,4.08947777,2445.3,2444.7,24.23198144]
[1747609002889,4.08947777,2445.3,2444.9,0.55]
[1747609003374,4.08917613,2445.5,2444.7,0.8085]
[1747609003561,4.09014683,2444.9,2444.8,9.391]
[1747609004285,4.09064877,2444.6,2444.5,14.724]
[1747609004433,4.09064877,2444.6,2444.5,24.115]
[1747609004636,0.7568,2445.2,2444.5,24.115]
[1747609004844,9.389,2445.1,2444.5,24.115]
[1747609005050,4.09064877,2444.6,2444.5,14.724]
[1747609005247,4.88164877,2444.6,2444.5,14.724]
[1747609007454,4.09210952,2443.8,2443.7,14.723]
[1747609007648,4.09210952,2443.8,2443.7,24.114]
[1747609007947,4.09210952,2443.8,2443.7,14.723]
[1747609008871,4.0923228,2443.6,2443.0,14.723]
[1747609009043,4.09314452,2443.2,2443.0,14.723]
[1747609009239,4.09182045,2443.9,2443.1,9.391]
[1747609009541,4.09256033,2443.5,2443.2,9.391]
[1747609009738,4.09282527,2443.3,2443.2,9.391]
[1747609009976,4.09282527,2443.3,2443.1,0.55]
[1747609010179,0.7626,2444.0,2443.2,9.391]
[1747609010180,4.09182045,2443.9,2443.2,9.391]
[1747609010479,4.09215533,2443.7,2443.0,14.723]
[1747609010656,4.09265777,2443.4,2443.3,9.391]
[1747609012380,0.7626,2444.0,2443.4,4.64256796]
[1747609012578,4.09128267,2444.3,2443.7,0.55]
[1747609012779,4.09156364,2444.1,2443.8,9.392]
[1747609013076,4.09164763,2444.1,2443.9,14.724]
[1747609013690,4.09035652,2444.8,2444.0,0.55]
[1747609013886,4.09061794,2444.7,2444.2,0.55]
[1747609014185,4.09065684,2444.6,2444.4,0.55]
[1747609015084,4.09095541,2444.5,2444.0,0.55]
[1747609015290,0.7847,2444.9,2443.9,14.724]
[1747609015455,4.09154657,2444.1,2444.0,9.942]
[1747609015867,4.09165302,2444.0,2443.9,14.724]
[1747609016302,4.09165302,2444.0,2443.9,24.116]
[1747609017788,4.09148561,2444.1,2443.3,0.833]
[1747609018099,4.09249028,2443.5,2443.4,9.392]
[1747609019400,4.09226357,2443.7,2443.4,9.942]
[1747609019571,4.09233548,2443.6,2443.4,9.942]
[1747609019771,8.7515,2444.3,2443.5,9.392]
[1747609020105,4.09265777,2443.4,2443.3,0.55]
[1747609020287,4.09282527,2443.3,2443.2,14.724]
[1747609020490,4.09282527,2443.3,2443.2,24.116]
[1747609020667,0.8096,2443.7,2443.2,24.116]
[1747609021074,4.09259025,2443.5,2443.3,0.55]
[1747609021384,0.7502,2444.3,2443.4,4.09253057]
[1747609021600,0.7502,2444.3,2443.5,0.55]
[1747609021800,0.7502,2444.3,2443.5,4.64234752]
[1747609022001,4.0916847,2444.0,2443.5,0.55]
[1747609022178,4.09187105,2443.9,2443.5,0.55]
[1747609022375,4.09199134,2443.8,2443.5,0.55]
[1747609022575,0.7502,2444.3,2443.7,0.55]
[1747609022776,10.2057,2444.7,2443.7,4.64211409]
[1747609023085,14.29519779,2444.7,2443.7,0.55]
[1747609023296,10.2047,2444.7,2443.7,0.55]
[1747609023605,4.09081611,2444.5,2443.8,9.392]
[1747609023813,4.09198384,2443.9,2443.8,9.942]
[1747609023979,4.09173531,2444.0,2443.8,9.942]
[1747609024178,4.0915036,2444.1,2443.8,9.942]
[1747609024522,0.8306,2445.2,2444.1,0.55]
[1747609024715,4.0900601,2445.0,2444.5,0.55]
[1747609024876,4.08931054,2445.4,2444.6,9.392]
[1747609025079,4.08931054,2445.4,2444.3,0.7887]
[1747609025080,0.05112669,2445.3,2444.3,0.7887]
[1747609025292,0.8306,2444.7,2444.3,0.55]
[1747609025492,15.79894987,2445.2,2444.3,0.55]
[1747609025493,4.09098347,2444.4,2444.3,0.55]
[1747609026205,4.09098347,2444.4,2444.3,9.942]
[1747609026405,4.08939105,2445.4,2444.3,9.942]
[1747609026406,1.10313849,2445.3,2444.5,0.55]
[1747609026611,0.34293849,2445.3,2444.5,0.55]
[1747609026814,4.09031413,2444.8,2444.5,0.55]
[1747609027115,4.09031413,2444.8,2444.5,2.56301]
[1747609027612,4.09056828,2444.7,2444.5,0.55]
[1747609027811,0.34293849,2445.3,2444.5,0.55]
[1747609027812,4.09064877,2444.6,2444.5,0.55]
[1747609028014,4.09024389,2444.9,2444.5,0.55]
[1747609028226,4.08914332,2445.5,2444.5,6.65361412]
[1747609028423,4.08976141,2445.2,2444.7,0.55]
[1747609028721,4.08997955,2445.0,2444.9,1.3638]
[1747609029391,4.08997955,2445.0,2444.2,18.81627344]
[1747609029392,0.05112409,2445.0,2444.6,4.09064584]
[1747609029594,4.0881403,2446.1,2444.7,9.379]
[1747609029926,4.43107879,2446.1,2444.8,0.55]
[1747609030221,4.08939075,2445.4,2445.0,0.55]
[1747609030424,4.08939075,2445.4,2445.1,14.722]
[1747609030728,4.08939075,2445.4,2445.3,0.55]
[1747609032123,4.08890692,2445.7,2445.5,0.55]
[1747609032325,4.85684282,2446.2,2445.5,0.55]
[1747609032326,4.08897612,2445.6,2445.5,0.55]
[1747609032726,4.08964501,2445.2,2445.1,16.0231]
[1747609033294,4.08964353,2445.3,2445.2,0.55]
[1747609033626,0.7688,2446.2,2445.2,0.55]
[1747609033827,4.08922474,2445.5,2445.2,3.08991]
[1747609033992,0.7688,2446.2,2445.2,3.08991]
[1747609033993,4.08947777,2445.3,2445.2,3.08991]
[1747609034323,4.0890299,2445.6,2445.2,3.08991]
[1747609034528,4.08935492,2445.4,2445.2,3.08991]
[1747609034828,4.08947777,2445.3,2445.2,0.55]
[1747609035030,4.08920179,2445.5,2445.2,0.55]
[1747609035031,4.08939524,2445.4,2445.2,0.55]
[1747609035514,4.08947777,2445.3,2445.2,0.55]
[1747609035694,4.0881403,2446.1,2445.2,0.55]
[1747609035892,0.7688,2446.2,2445.4,0.55]
[1747609036097,4.08892736,2445.7,2445.4,0.55]
[1747609036327,4.08898242,2445.6,2445.4,0.55]
[1747609036529,4.08866198,2445.8,2445.4,0.55]
[1747609036715,4.0880343,2446.2,2445.4,0.55]
[1747609036922,4.08792701,2446.3,2445.7,4.0887186]
[1747609037121,4.09256344,2446.5,2446.0,4.08824163]
[1747609037332,4.08797318,2446.2,2446.1,15.269]
[1747609037540,4.08797318,2446.2,2446.1,14.719]
[1747609037838,4.08797318,2446.2,2446.1,24.644]
[1747609039744,4.08797318,2446.2,2446.1,14.719]
[1747609039949,4.08797318,2446.2,2446.1,24.093]
[1747609041248,4.08797318,2446.2,2446.1,24.092]
[1747609041416,4.84317318,2446.2,2446.1,14.719]
[1747609041616,4.84317318,2446.2,2446.1,24.092]
[1747609041816,4.84317318,2446.2,2446.1,14.719]
[1747609042145,4.84317318,2446.2,2445.8,9.373]
[1747609042146,8.0,2446.1,2445.8,9.373]
[1747609042350,4.08931054,2445.4,2445.3,14.715]
[1747609042531,4.08931054,2445.4,2445.3,24.088]
[1747609042849,4.08931054,2445.4,2445.3,24.638]
[1747609043049,4.08931054,2445.4,2445.3,14.715]
[1747609043261,4.08931054,2445.4,2445.3,24.088]
[1747609043462,4.08931054,2445.4,2444.7,0.7662]
[1747609043463,4.09031413,2444.8,2444.7,14.715]
[1747609043871,4.09031413,2444.8,2444.7,24.088]
[1747609046165,4.09023047,2444.9,2444.7,24.089]
[1747609046367,4.0895209,2445.3,2444.9,0.55]
[1747609046547,4.08933093,2445.4,2444.9,4.64012465]
[1747609046742,4.08951806,2445.3,2444.9,0.55]
[1747609046947,4.08965839,2445.2,2444.9,0.55]
[1747609047167,4.08965839,2445.2,2445.1,0.55]
[1747609047168,4.08980556,2445.2,2445.1,0.55]
[1747609047470,4.08910605,2445.6,2445.3,0.55]
[1747609047674,4.08889002,2445.7,2445.3,9.916]
[1747609047893,4.08902899,2445.6,2445.3,9.916]
[1747609048038,4.08923353,2445.5,2445.3,0.55]
[1747609048355,4.85140639,2446.2,2445.3,0.55]
[1747609048356,4.08931054,2445.4,2445.3,0.55]
[1747609048671,4.08931054,2445.4,2445.3,9.924]
[1747609048875,4.08922019,2445.5,2445.3,9.924]
[1747609049071,4.0891208,2445.6,2445.5,0.55]
[1747609049270,0.7634,2446.2,2445.5,0.55]
[1747609049576,4.08864175,2445.8,2445.7,0.55]
[1747609049787,4.08864175,2445.8,2445.7,9.924]
[1747609050091,5.94719117,2446.4,2445.7,9.924]
[1747609050371,4.08832255,2446.0,2445.8,0.8108]
[1747609051587,4.08815515,2446.1,2445.9,0.55]
[1747609052076,4.08822877,2446.1,2445.9,0.55]
[1747609052238,4.08810546,2446.2,2445.9,0.55]
[1747609052440,4.08805717,2446.2,2445.9,0.55]
[1747609053037,4.08805717,2446.2,2445.9,2.80629]
[1747609053249,4.09252379,2446.5,2445.9,2.80629]
[1747609053585,0.005,2446.5,2445.9,2.80629]
[1747609053758,4.08774172,2446.4,2445.9,6.89472728]
[1747609054459,4.09257324,2446.5,2445.9,6.89472728]
[1747609054672,4.08764336,2446.4,2446.1,0.55]
[1747609054866,0.005,2446.5,2446.3,1.3284]
[1747609055091,0.005,2446.5,2446.4,0.55]
[1747609055469,0.005,2446.5,2446.4,9.923]
[1747609056354,4.09247189,2446.5,2446.4,0.55]
[1747609056556,4.09247189,2446.5,2446.4,9.921]
[1747609057000,0.005,2446.5,2446.4,16.77057897]
[1747609057560,0.005,2446.5,2446.4,17.11621125]
[1747609058310,0.005,2446.5,2446.4,16.77057897]
[1747609058531,0.005,2446.5,2446.4,17.03222542]
[1747609058681,0.8299,2448.0,2447.2,0.55]
[1747609058886,4.08577206,2447.6,2447.3,24.084]
[1747609059197,0.8299,2448.0,2447.4,0.55]
[1747609059198,4.08580183,2447.5,2447.4,0.55]
[1747609059397,4.08580183,2447.5,2447.4,9.921]
[1747609060298,4.08580183,2447.5,2447.4,9.906]
[1747609060495,4.08580183,2447.5,2447.4,0.55]
[1747609060683,4.08580183,2447.5,2447.4,9.906]
[1747609061320,4.08596878,2447.4,2447.3,14.713]
[1747609061523,4.08596878,2447.4,2447.3,24.069]
[1747609061688,4.89516878,2447.4,2447.3,24.069]
[1747609063226,4.08596878,2447.4,2447.3,24.069]
[1747609063722,0.8092,2447.8,2447.4,0.55]
[1747609064283,4.08577547,2447.6,2447.4,0.55]
[1747609064917,4.08580183,2447.5,2447.4,0.55]
[1747609065299,4.08580183,2447.5,2447.4,1.376]
[1747609065832,4.08572081,2447.6,2447.4,1.376]
[1747609066034,4.08569116,2447.6,2447.4,1.376]
[1747609066199,4.08569116,2447.6,2447.4,4.15198675]
[1747609066840,4.08537932,2447.8,2447.4,4.15198675]
[1747609067138,4.08555041,2447.7,2447.4,4.15198675]
[1747609067517,4.08526335,2447.9,2447.4,4.15198675]
[1747609067713,4.08529744,2447.9,2447.6,0.55]
[1747609068024,0.005,2448.0,2447.6,0.59085313]
[1747609068239,4.09001688,2448.0,2447.6,0.55]
[1747609068852,4.08526446,2447.9,2447.6,0.55]
[1747609069026,4.08539728,2447.8,2447.6,0.55]
[1747609069230,4.09001482,2448.0,2447.6,0.99295854]
[1747609069231,4.08521574,2447.9,2447.6,0.99295854]
[1747609069902,4.09002751,2448.0,2447.6,0.99295854]
[1747609070102,0.005,2448.0,2447.6,0.99295854]
[1747609070530,4.0899687,2448.0,2447.6,0.99295854]
[1747609070733,0.005,2448.0,2447.8,0.55]
[1747609070933,0.005,2448.0,2447.9,9.903]
[1747609071142,0.005,2448.0,2447.9,14.75733419]
[1747609071454,0.005,2448.0,2447.9,20.0172]
[1747609071810,0.005,2448.0,2447.9,1.3192]
[1747609072006,0.005,2448.0,2447.9,20.63697975]
[1747609072409,4.08996732,2448.0,2447.9,1.94097975]
[1747609072722,4.08996732,2448.0,2447.9,1.3192]
[1747609072917,0.005,2448.0,2447.9,20.0142]
[1747609074522,0.005,2448.0,2447.9,24.40936089]
[1747609075147,0.005,2448.0,2447.9,1.6292267]
[1747609075322,0.005,2448.0,2447.9,20.3202267]
[1747609075653,0.005,2448.0,2447.9,22.76077657]
[1747609075856,0.005,2448.0,2447.9,0.7692]
[1747609076027,0.005,2448.0,2447.9,18.691]
[1747609076228,0.005,2448.0,2447.9,19.241]
[1747609076461,0.005,2448.0,2447.9,9.901]
[1747609077446,4.08996732,2448.0,2447.9,9.901]
[1747609077756,0.005,2448.0,2447.9,9.9]
[1747609079034,4.08996732,2448.0,2447.9,9.9]
[1747609079661,4.08513419,2447.9,2447.4,0.7949]
[1747609079836,4.08513419,2447.9,2447.5,9.9]
[1747609079837,4.08522776,2447.9,2447.5,9.9]
[1747609080036,4.08997559,2448.0,2447.5,14.701]
[1747609080037,4.08551986,2447.7,2447.5,14.701]
[1747609080235,0.005,2448.0,2447.6,9.35]
[1747609080438,4.08530108,2447.8,2447.7,0.55]
[1747609080963,0.005,2448.0,2447.7,4.63542824]
[1747609081126,0.005,2448.0,2447.9,0.55]
[1747609081329,0.005,2448.0,2447.9,6.17045584]
[1747609081529,4.08996732,2448.0,2447.9,2.08532165]
[1747609081724,4.08996732,2448.0,2447.9,9.9]
[1747609081969,0.005,2448.0,2447.9,9.9]
[1747609082649,0.005,2448.0,2447.9,4.63513419]
[1747609082869,0.005,2448.0,2447.9,13.98513419]
[1747609083045,0.005,2448.0,2447.9,23.31813419]
[1747609083243,0.005,2448.0,2447.9,26.14176955]
[1747609085065,0.005,2448.0,2447.9,3.37363536]
[1747609085367,0.005,2448.0,2447.9,9.349]
[1747609085666,4.08996732,2448.0,2447.9,9.349]
[1747609086034,0.005,2448.0,2447.5,15.5096]
[1747609086238,4.08537793,2447.8,2447.6,9.349]
[1747609086744,4.08521718,2447.9,2447.6,9.349]
[1747609087133,0.005,2448.0,2447.7,0.55]
[1747609087332,0.005,2448.0,2447.7,0.59085315]
[1747609087555,0.005,2448.0,2447.9,0.55]
[1747609088074,0.005,2448.0,2447.8,0.55]
[1747609088859,0.005,2448.0,2447.9,9.899]
[1747609089932,0.005,2448.0,2447.9,13.98413419]
[1747609090133,0.005,2448.0,2447.9,11.50302148]
[1747609090333,0.005,2448.0,2447.9,16.34235567]
[1747609090732,0.005,2448.0,2447.9,12.25722148]
[1747609090936,0.005,2448.0,2447.9,16.34235567]
[1747609091552,0.005,2448.0,2447.9,12.25722148]
[1747609091880,0.005,2448.0,2447.9,16.34235567]
[1747609092093,0.005,2448.9,2448.8,0.55]
[1747609092376,4.08846604,2448.9,2448.8,24.574]
[1747609092582,4.08846604,2448.9,2448.8,14.699]
[1747609092744,4.84836604,2448.9,2448.8,24.024]
[1747609093141,4.08846604,2448.9,2448.8,24.024]
[1747609095402,0.005,2448.9,2448.8,24.024]
[1747609095559,4.08846604,2448.9,2448.8,24.024]
[1747609095886,0.005,2448.9,2448.8,24.024]
[1747609096049,0.005,2448.9,2448.8,24.574]
[1747609096250,4.08846604,2448.9,2448.8,27.1444039]
[1747609097096,4.08846604,2448.9,2448.8,24.574]
[1747609097400,0.005,2448.9,2448.8,24.574]
[1747609097758,0.005,2448.9,2448.8,24.573]
[1747609098397,0.005,2448.9,2448.8,28.65663279]
[1747609098599,0.005,2448.9,2448.8,24.573]
[1747609098781,0.005,2448.9,2448.8,28.48337737]
[1747609100768,0.005,2448.9,2448.8,24.04071016]
[1747609101115,0.005,2448.9,2448.8,28.73007737]
[1747609101286,0.005,2448.9,2448.8,33.36371016]
[1747609101802,0.005,2448.9,2448.8,29.28007737]
[1747609101967,0.005,2448.9,2448.8,33.36371016]
[1747609102372,0.005,2448.9,2448.8,28.48137737]
[1747609103305,0.005,2448.9,2448.8,32.56501016]
[1747609104508,0.005,2448.9,2448.8,32.82554486]
[1747609104911,0.005,2448.9,2448.8,28.74191207]
[1747609105093,0.005,2448.9,2448.8,32.82554486]
[1747609105293,0.005,2448.9,2448.8,38.04691207]
[1747609106030,4.08846604,2448.9,2448.8,14.9595347]
[1747609106216,4.08846604,2448.9,2448.8,24.2805347]
[1747609106394,4.08846604,2448.9,2448.8,14.9595347]
[1747609106594,4.08846604,2448.9,2448.8,14.699]
[1747609109437,4.08846604,2448.9,2448.1,0.00962093]
[1747609109438,4.08379956,2448.7,2448.1,0.00962093]
[1747609109667,4.0846336,2448.2,2448.1,0.00962093]
[1747609110499,4.08452359,2448.3,2448.1,0.00962093]
[1747609110700,4.08377201,2448.8,2448.1,0.55962093]
[1747609110950,4.08397633,2448.6,2448.3,0.55]
[1747609111109,4.08397633,2448.6,2448.3,15.245]
[1747609112535,0.7917,2448.9,2448.3,14.695]
[1747609112536,4.08429995,2448.4,2448.3,14.695]
[1747609112839,4.08429995,2448.4,2448.3,24.017]
[1747609113140,0.7917,2448.9,2448.4,0.55]
[1747609113347,4.08373825,2448.8,2448.5,2.4567]
[1747609113648,0.005,2448.9,2448.6,0.55]
[1747609113849,4.08379956,2448.7,2448.6,0.55]
[1747609114145,4.08396634,2448.6,2448.3,14.695]
[1747609114345,4.08426413,2448.5,2448.4,9.323]
[1747609114640,4.08406046,2448.6,2448.4,11.67887808]
[1747609115029,4.08363809,2448.8,2448.5,1.3175]
[1747609116362,0.005,2448.9,2448.6,0.04083557]
[1747609116506,0.005,2448.9,2448.5,10.6135]
[1747609116712,4.08854589,2448.9,2448.5,10.6135]
[1747609116911,4.08854589,2448.9,2448.6,2.58266569]
[1747609117110,4.08378566,2448.8,2448.7,9.322]
[1747609117415,0.005,2448.9,2448.8,0.55]
[1747609117621,4.08846604,2448.9,2448.8,0.55]
[1747609118341,4.08369869,2448.8,2448.5,0.55]
[1747609118519,4.08852969,2448.9,2448.7,0.55]
[1747609118724,4.08852969,2448.9,2448.8,9.872]
[1747609119740,4.03852969,2448.9,2448.8,9.872]
[1747609120441,0.11571,2449.0,2448.9,0.55]
[1747609120948,4.1990093,2449.0,2448.9,0.55]
[1747609121147,0.11571,2449.0,2448.9,1.26702212]
[1747609121350,0.11571,2449.0,2448.9,5.35048816]
[1747609121848,0.11571,2449.0,2448.9,1.26702212]
[1747609122020,0.11571,2449.0,2448.9,14.64048816]
[1747609122442,0.11571,2449.0,2448.9,1.26702212]
[1747609122750,0.11571,2449.0,2448.9,19.25751121]
[1747609123059,0.11571,2449.0,2448.9,19.129]
[1747609123367,0.11571,2449.0,2448.9,23.21246604]
[1747609125763,0.11571,2449.0,2448.9,4.63346604]
[1747609125968,0.11571,2449.0,2448.9,23.20846604]
[1747609126279,0.11571,2449.0,2448.9,25.60885264]
[1747609126768,0.11571,2449.0,2448.9,7.03385264]
[1747609126933,0.11571,2449.0,2448.9,23.20746604]
[1747609128267,0.11571,2449.0,2448.9,23.20546604]
[1747609128568,0.06571,2449.0,2448.9,4.63346604]
[1747609128742,0.06571,2449.0,2448.9,23.20446604]
[1747609128934,0.06571,2449.0,2448.9,4.63346604]
[1747609129133,0.06571,2449.0,2448.9,20.07124808]
[1747609129361,0.06571,2449.0,2448.9,24.15471412]
[1747609129727,0.06571,2449.0,2448.9,24.15371412]
[1747609132967,0.06571,2449.0,2448.9,5.58471412]
[1747609133264,0.06571,2449.0,2448.9,24.09971412]
[1747609133494,0.06571,2449.0,2448.9,24.09871412]
[1747609133630,0.06571,2449.0,2448.9,5.53471412]
[1747609133835,0.06571,2449.0,2448.9,24.09871412]
[1747609134032,0.06571,2449.0,2448.9,24.86651412]
[1747609134266,0.06571,2449.0,2448.9,25.08258056]
[1747609134645,0.06571,2449.0,2448.9,25.34328307]
[1747609134846,0.06571,2449.0,2448.9,25.47078745]
[1747609135047,0.06571,2449.0,2448.9,25.25372101]
[1747609135250,0.7909,2450.2,2449.5,0.55]
[1747609135463,4.08184305,2449.9,2449.7,0.55]
[1747609135840,4.08196587,2449.8,2449.7,0.55]
[1747609136179,0.7909,2450.2,2449.7,0.55]
[1747609136352,4.0818979,2449.9,2449.7,9.839]
[1747609137774,4.08196587,2449.8,2449.7,9.839]
[1747609138075,4.08195158,2449.9,2449.7,9.839]
[1747609138478,4.08196587,2449.8,2449.7,9.839]
[1747609138668,4.08193681,2449.9,2449.7,9.839]
[1747609138994,0.26158876,2450.5,2449.7,9.839]
[1747609138995,0.29914433,2451.0,2450.1,0.55]
[1747609139280,3.88459815,2452.9,2451.0,0.55]
[1747609139281,4.07918229,2451.5,2451.0,0.55]
[1747609139480,4.07918229,2451.5,2450.9,1.305]
[1747609139481,4.07875432,2451.8,2451.2,0.55]
[1747609139666,4.07927726,2451.5,2451.2,9.816]
[1747609139982,4.0779708,2452.2,2451.4,1.3602]
[1747609140154,5.69281936,2452.5,2451.1,14.691]
[1747609140155,4.07940236,2451.4,2451.1,14.691]
[1747609140481,4.07940236,2451.4,2451.2,9.287]
[1747609140779,4.07900629,2451.6,2451.2,9.287]
[1747609141184,5.69281936,2452.5,2451.0,0.8102]
[1747609141185,0.30364297,2452.0,2451.0,0.8102]
[1747609141498,0.30364297,2452.0,2451.1,23.974]
[1747609141653,0.30364297,2452.0,2451.4,0.7559]
[1747609141956,0.30364297,2452.0,2451.9,4.62846975]
[1747609142143,0.7861,2452.7,2452.0,0.8293]
[1747609142346,4.86328532,2452.7,2452.2,0.55]
[1747609142577,4.07730571,2452.6,2452.2,0.55]
[1747609142755,4.07731733,2452.6,2452.3,9.287]
[1747609142956,4.07747196,2452.5,2452.4,9.287]
[1747609143688,0.7861,2452.7,2452.4,9.287]
[1747609143846,4.0779708,2452.2,2452.1,11.07262109]
[1747609144177,4.07593814,2453.5,2452.7,4.07713947]
[1747609144347,4.07593814,2453.5,2452.0,10.0268]
[1747609144348,0.7946,2453.8,2452.8,9.284]
[1747609144682,0.34293849,2453.7,2452.9,18.58176564]
[1747609144886,0.7946,2453.8,2452.9,18.541]
[1747609145054,4.07629538,2453.3,2452.8,0.8176]
[1747609145251,4.0760117,2453.4,2453.0,18.541]
[1747609145489,0.7946,2453.8,2453.0,18.541]
[1747609145675,0.7946,2453.8,2453.1,18.541]
[1747609145985,0.7946,2453.8,2452.8,4.89454345]
[1747609145986,4.07597922,2453.4,2453.2,9.284]
[1747609146188,4.07614233,2453.3,2453.2,9.284]
[1747609146388,4.86996833,2453.8,2453.2,9.284]
[1747609146554,4.07554447,2453.7,2453.3,0.55]
[1747609146758,0.7946,2453.8,2452.8,1.12186967]
[1747609146959,4.07653315,2453.1,2452.9,9.281]
[1747609147264,0.7946,2453.8,2453.0,0.55]
[1747609147496,4.07565174,2453.6,2453.0,4.62652801]
[1747609147798,4.07508446,2454.0,2453.4,4.07589156]
[1747609147960,4.0752746,2453.9,2453.6,0.55]
[1747609148160,4.07531273,2453.8,2453.6,0.55]
[1747609148382,0.7946,2454.2,2453.6,0.55]
[1747609148602,4.07564395,2453.6,2453.5,14.678]
[1747609148804,4.07528565,2453.9,2453.6,0.55]
[1747609149012,0.7946,2454.2,2453.6,0.55]
[1747609149013,4.07509473,2454.0,2453.6,0.55]
[1747609149163,4.07481357,2454.1,2453.6,0.55]
[1747609149590,4.0748975,2454.1,2453.6,0.55]
[1747609149763,4.07434218,2454.4,2453.6,3.40846502]
[1747609149959,4.07480294,2454.2,2453.6,2.85846502]
[1747609150204,4.07555878,2453.7,2453.5,14.678]
[1747609150361,4.07547784,2453.7,2453.6,9.249]
[1747609150682,4.86975591,2453.9,2453.6,9.249]
[1747609150882,4.07547784,2453.7,2453.6,9.249]
[1747609151090,4.07564395,2453.6,2453.5,14.678]
[1747609151299,4.07564395,2453.6,2453.5,23.927]
[1747609151479,4.07557638,2453.7,2453.5,23.927]
[1747609151679,4.07564395,2453.6,2453.5,14.678]
[1747609152005,4.07564395,2453.6,2452.8,0.30426967]
[1747609152006,0.7607,2453.6,2452.8,0.30426967]
[1747609152178,0.7607,2453.6,2452.7,0.8256]
[1747609152502,4.07500389,2454.0,2453.4,14.675]
[1747609152686,0.8137,2454.1,2453.5,9.247]
[1747609152687,4.07556384,2453.7,2453.5,9.247]
[1747609152998,4.07547784,2453.7,2453.6,0.55]
[1747609153202,4.07497962,2454.0,2453.4,14.97445492]
[1747609153203,4.07571147,2453.6,2453.4,15.52445492]
[1747609153404,4.07571147,2453.6,2453.5,9.247]
[1747609153604,4.07497962,2454.0,2453.6,0.55]
[1747609153902,4.07522459,2453.9,2453.6,0.55]
[1747609154200,4.07542693,2453.8,2453.6,0.55]
[1747609154698,4.07547784,2453.7,2453.6,9.795]
[1747609155004,0.8137,2454.1,2453.6,19.042]
[1747609155299,0.8137,2454.1,2453.7,9.797]
[1747609155300,4.07543416,2453.8,2453.7,9.797]
[1747609155799,4.07414952,2454.5,2453.8,0.55]
[1747609156015,0.8247,2454.8,2454.0,0.55]
[1747609156189,0.8247,2454.8,2454.4,0.55]
[1747609156190,4.07379495,2454.8,2454.4,0.55]
[1747609156391,4.07353999,2454.9,2454.6,0.55]
[1747609156591,0.05,2455.0,2454.5,23.916]
[1747609156592,0.05,2455.0,2454.7,9.246]
[1747609156779,4.07365162,2454.8,2454.7,9.246]
[1747609157308,0.05,2455.0,2454.7,9.246]
[1747609157601,4.07359,2454.9,2454.8,0.55]
[1747609157802,4.07365162,2454.8,2454.7,0.55]
[1747609158006,4.07365162,2454.8,2454.7,9.796]
[1747609158487,4.07398354,2454.6,2454.5,14.67]
[1747609158689,4.07398354,2454.6,2454.5,24.464]
[1747609158890,0.05,2455.0,2454.5,24.464]
[1747609159199,4.07368781,2454.8,2454.5,28.32320894]
[1747609159498,4.07365162,2454.8,2454.7,0.55]
[1747609159705,0.05,2455.0,2454.7,0.55]
[1747609159919,4.07396536,2454.7,2454.6,0.55]
[1747609160124,4.07396536,2454.7,2454.6,9.794]
[1747609161305,0.05,2455.0,2454.6,9.794]
[1747609161505,4.12336884,2455.0,2454.6,9.794]
[1747609161790,0.05,2455.0,2454.5,14.67]
[1747609162107,4.07374001,2454.8,2454.7,9.242]
[1747609162419,4.07398354,2454.6,2454.5,14.67]
[1747609162589,4.07398354,2454.6,2454.5,23.912]
[1747609162790,4.07398354,2454.6,2454.5,14.67]
[1747609162990,4.07398354,2454.6,2454.5,23.912]
[1747609163422,4.07398354,2454.6,2454.5,14.67]